Cogmind - Beta 15 @@@ ROGUE MODE // 2025.09.29 @ 02:01:51 Player: Runagate Result: Self-destructed Performance ------------- Evolutions (4) 2000 Regions Visited (4) 800 Robots Destroyed (23) 115 Value Destroyed (458) 458 Prototype IDs (6) 120 Alien Tech Used (0) 0 Bonus (800) 800 TOTAL SCORE: 4293 Bonus ------- Registered with UFD 300 Met Optimus in HQ 500 Cogmind --------- Core Integrity 835/850 Matter 300/300 Energy 265/265 System Corruption 0% Temperature Cool (0) Movement Treading (155) Location -6/Factory Parts ------- > --- POWER (1) -------- Improved Ion Engine > --- PROPULSION (4) --- Light Treads Light Treads Advanced Treads Overtuned Treads > --- UTILITY (7) ------ High-capacity Storage Unit Structural Scanner > --- WEAPON (3) ------- Overtuned Pulse Rifle Overtuned Barrage Gun Flak Gun > --- INVENTORY (20) --- Improved Ion Engine Improved Ion Engine Light Treads Light Treads Light Treads Improved Treads High-capacity Storage Unit High-capacity Matter Pod (200) Tractor Beam Tractor Beam Particle Gun Bolt Gun Autogun Improved Light Cannon Grenade Launcher Datajack Maul Peak State ------------ > --- POWER ------------ Improved Ion Engine > --- PROPULSION ------- Light Treads Light Treads Advanced Treads Overtuned Treads > --- UTILITY ---------- High-capacity Storage Unit Structural Scanner > --- WEAPON ----------- Overtuned Pulse Rifle Overtuned Barrage Gun Flak Gun > --- INVENTORY -------- Improved Ion Engine Improved Ion Engine Light Treads Light Treads Light Treads Improved Treads Overtuned Medium Treads High-capacity Storage Unit High-capacity Matter Pod Tractor Beam Tractor Beam Particle Gun Bolt Gun Autogun Improved Light Cannon Grenade Launcher Datajack Maul [Rating: 25] Favorites ----------- Power Light Ion Engine Engine Light Ion Engine Propulsion Light Treads Treads Light Treads Utility High-capacity Storage Unit Device Structural Scanner Storage High-capacity Storage Unit Protection Hardened Light Armor Plating Weapon Battle Cannon Energy Gun Medium Laser Ballistic Gun Assault Rifle Ballistic Cannon Battle Cannon Launcher Grenade Launcher Build | -11 -10 -10 -9 -6 ------- Run | Yrd Mat Sub Scr Fac Slots Evolved 8 | . . . . 8 Power . | . . . . . Propulsion 2 | . . . . 2 Utility 5 | . . . . 5 Weapon 1 | . . . . 1 Parts Attached 38 | 8 10 3 14 3 Power 5 | 2 1 . 2 . Engine 5 | 2 1 . 2 . Core . | . . . . . Reactor . | . . . . . Propulsion 12 | 2 4 . 4 2 Treads 12 | 2 4 . 4 2 Leg . | . . . . . Wheel . | . . . . . Hover . | . . . . . Flight . | . . . . . Utility 6 | 2 1 . 3 . Device 2 | 1 . . 1 . Storage 3 | 1 1 . 1 . Processor . | . . . . . Hackware . | . . . . . Protection 1 | . . . 1 . Artifact . | . . . . . Weapon 15 | 2 4 3 5 1 Energy Gun 4 | 1 1 1 1 . Energy Cannon . | . . . . . Ballistic Gun 7 | 1 2 1 2 1 Ballistic Cannon 3 | . . 1 2 . Launcher 1 | . 1 . . . Special Weapon . | . . . . . Impact Weapon . | . . . . . Slashing Weapon . | . . . . . Piercing Weapon . | . . . . . Special Melee Weapon . | . . . . . Unidentified Prototypes . | . . . . . Parts Lost 1 | . . 1 . . Power . | . . . . . Propulsion . | . . . . . Utility 1 | . . 1 . . Weapon . | . . . . . Highest Loss Streak 1 | . . 1 . . To Critical Strikes . | . . . . . Average Backups 13 | 1 5 9 17 17 Power 1 | . 1 1 1 2 Propulsion 4 | . . 2 6 5 Utility 3 | . 1 4 4 4 Weapon 3 | . 1 1 4 5 Tool/Special . | . . . . . Unused Backups 15 | . . . 5 10 Power 2 | . . . 1 1 Propulsion 2 | . . . 1 1 Utility 5 | . . . 1 4 Weapon 5 | . . . 2 3 Tool/Special 1 | . . . . 1 Average Slot Usage (%) 96 | . 99 90 99 64 Engine 13 | . 14 14 14 6 Treads 27 | . 27 28 28 24 Device 7 | . 14 5 7 6 Storage 17 | . 14 14 20 6 Energy Gun 12 | . 14 8 14 6 Ballistic Gun 5 | . 13 10 . 12 Ballistic Cannon 9 | . . 8 13 . Peak Build Rating 25 | 7 8 9 21 25 Average Rating 12 | 5 7 8 14 22 On Entrance 8 | . 7 8 7 19 Naked Turns . | . . . . . Heaviest Build 63 | 14 20 21 63 58 Greatest Support 80 | 40 40 40 47 80 Greatest Overweight (x) 2 | . . . 2 1 Average Overweight (x) . | . . . 1 . Largest Inventory Capacity 20 | 8 10 10 20 20 Average Capacity 15 | 7 8 10 19 20 Most Carried 20 | 2 10 10 20 20 Average Carried 13 | 1 5 9 17 17 Final Capacity 20 | 8 10 10 20 20 Final Carried 20 | 2 10 9 20 17 Class Distribution -------------------- 65% | Mutant 33% | Derelict-Mutant Dominant Class ---------------- Mutant | -10/Materials Mutant | -10/Subcaves Derelict-Mutant | -9/Scraptown Derelict-Mutant | -6/Factory Resources | -11 -10 -10 -9 -6 ----------- Run | Yrd Mat Sub Scr Fac Matter Collected 1341 | 325 205 253 497 61 Remotely . | . . . . . Salvage Created 786 | 196 272 187 70 61 Parts 56 | 19 22 9 4 2 Haulers Intercepted 1 | . 1 . . . Recyclers Shooed 3 | 1 2 . . . Parts Field Recycled . | . . . . . Retrieved Matter . | . . . . . Parts Self-Destructed 6 | . . 6 . . Prevented . | . . . . . Kills | -11 -10 -10 -9 -6 ------- Run | Yrd Mat Sub Scr Fac Combat Hostiles Destroyed 14 | . 8 4 1 1 Guns 12 | . 8 2 1 1 AOE 2 | . . 2 . . Classes Destroyed 10 | 3 4 1 1 1 Worker 2 | 2 . . . . Tunneler 4 | 4 . . . . Hauler 1 | . 1 . . . Recycler 1 | 1 . . . . Watcher 1 | . 1 . . . Swarmer 6 | . 6 . . . Grunt 2 | . 2 . . . Sentry 1 | . . . . 1 Subdweller 4 | . . 4 . . Scrapper 1 | . . . 1 . Best Kill Streak 7 | 7 3 2 1 1 Combat Bots Only 3 | . 3 2 1 1 Max Kills in Single Turn 1 | 1 1 1 1 1 Gunslinging . | . . . . . Exploded 1 | . . 1 . . Melee . | . . . . . Uniques/NPCs Destroyed . | . . . . . Combat | -11 -10 -10 -9 -6 -------- Run | Yrd Mat Sub Scr Fac Hostile Shots Fired 121 | . 40 7 20 54 Missed 44 | . 10 1 2 31 Hits 77 | . 30 6 18 23 Projectile 77 | . 30 6 18 23 Critical Strikes 2 | . . . 2 . Damage Taken 879 | . 326 128 245 180 Core 215 | . 75 26 99 15 Absorbed by Shields . | . . . . . Regen/Repaired (Parts) 12 | . 12 . . . Core Remaining (%) 60 | 100 . . 20 . Volleys Fired 99 | 15 43 25 4 12 Largest 3 | 2 2 2 2 3 Hottest 130 | 60 80 70 110 130 Shots Fired 176 | 29 84 45 5 13 Gun 161 | 29 83 31 5 13 Cannon 5 | . . 5 . . Launcher 10 | . 1 9 . . Special . | . . . . . Kinetic 99 | 15 42 25 4 13 Thermal 67 | 14 41 11 1 . Explosive 10 | . 1 9 . . Electromagnetic . | . . . . . Robot Hit Streak 22 | 4 15 22 7 5 Robot Miss Streak 3 | 2 3 1 1 1 Penetration Max . | . . . . . Secondary Targets 1 | . 1 . . . Max Gunslinging Chain 1 | . 1 . . . Shots Hit Robots 111 | 15 55 29 2 10 Core Hits 49 | 8 18 16 1 6 Critical Kills . | . . . . . Critical Parts Destroyed . | . . . . . Critical Strikes 2 | . 1 1 . . Burn 2 | . 1 1 . . Melee Attacks . | . . . . . Impact . | . . . . . Slashing . | . . . . . Piercing . | . . . . . Sneak Attacks . | . . . . . Combat Hostiles . | . . . . . Follow-up Attacks . | . . . . . Damage Inflicted 1813 | 179 707 812 46 69 Guns 1348 | 179 697 357 46 69 Cannons . | . . . . . Explosions 455 | . . 455 . . Melee . | . . . . . Ramming 10 | . 10 . . . Kinetic 824 | 101 365 264 25 69 Thermal 524 | 78 332 93 21 . Explosive 455 | . . 455 . . Electromagnetic . | . . . . . Impact . | . . . . . Slashing . | . . . . . Piercing . | . . . . . Highest Corruption . | . . . . . Average Corruption . | . . . . . Corruption Purged . | . . . . . Corruption Blocked . | . . . . . Overload Shots . | . . . . . Overflow Damage . | . . . . . Projectiles . | . . . . . Explosions . | . . . . . Melee . | . . . . . Knockbacks . | . . . . . Impact . | . . . . . Kinetic . | . . . . . Secondary . | . . . . . Self-Inflicted Damage 18 | . 11 7 . . Shots 2 | . 1 1 . . Rammed 3 | . 3 . . . Targets Rammed 3 | . 3 . . . Kicked . | . . . . . Crushed . | . . . . . Highest Temperature 207 | . 207 . 118 68 Average Temperature 55 | . 55 . 62 40 Received Heat Transfer 329 | . 123 12 134 60 Siege Activations . | . . . . . Martial Activations . | . . . . . Shielding Activations . | . . . . . Robots Disrupted . | . . . . . Combat Hostiles . | . . . . . Robots Corrupted . | . . . . . Combat Hostiles . | . . . . . Parts Fried . | . . . . . Impact Corruptions . | . . . . . Robots Melted . | . . . . . Combat Hostiles . | . . . . . Parts Melted 1 | 1 . . . . Heat Transferred 1512 | 175 953 334 50 . Parts Sabotaged . | . . . . . Parts Stolen . | . . . . . Parts Stripped . | . . . . . Power Chain Reactions . | . . . . . Alert | -11 -10 -10 -9 -6 ------- Run | Yrd Mat Sub Scr Fac Maximum Alert Level . | . . . . . Low Security (%) 100 | 100 100 . . 100 Level 1 . | . . . . . Level 2 . | . . . . . Level 3 . | . . . . . Level 4 . | . . . . . Level 5 . | . . . . . High Security . | . . . . . Max Security . | . . . . . Peak Influence 71 | 15 71 . . 30 Initial . | . . . . . Average 8 | 2 9 . . 5 Influence Increases 355 | 35 290 . . 30 Destroy 0b10 Robot/C 180 | . 160 . . 20 Destroy 0b10 Robot/NC 45 | 35 10 . . . Destroy Leader 44 | . 34 . . 10 Successful Hack 18 | . 18 . . . Destroy Structure 8 | . 8 . . . Lose Combat Pursuer 60 | . 60 . . . Influence Decreases 355 | 35 223 67 . 30 Entered New Map 33 | . . 33 . . Time Decay 322 | 35 223 34 . 30 Squads Dispatched . | . . . . . Investigation . | . . . . . Extermination . | . . . . . Reinforcement . | . . . . . Assault . | . . . . . Garrison . | . . . . . Intercept . | . . . . . Searches Triggered . | . . . . . Construction Impeded . | . . . . . Haulers Reinforced . | . . . . . Active Scanning Responses . | . . . . . Cargo Convoy Interrupts . | . . . . . Stealth | -11 -10 -10 -9 -6 --------- Run | Yrd Mat Sub Scr Fac Distress Signals 2 | . 2 . . . Communications Jammed . | . . . . . Distress Signals . | . . . . . Times Spotted 30 | . 19 4 6 1 Peak Tracking Total 3 | . 3 2 3 1 Tactical Retreats 4 | . 4 . . . Traps | -11 -10 -10 -9 -6 ------- Run | Yrd Mat Sub Scr Fac Traps Triggered . | . . . . . Indirectly . | . . . . . Trap Hack Attempts . | . . . . . Triggered . | . . . . . Disarmed . | . . . . . Reprogrammed . | . . . . . Reused . | . . . . . Traps Extracted . | . . . . . Installed . | . . . . . Triggered . | . . . . . Machines | -11 -10 -10 -9 -6 ---------- Run | Yrd Mat Sub Scr Fac Machines Disabled . | . . . . . Max in Single Turn . | . . . . . Machines Repaired . | . . . . . Machines Dismantled . | . . . . . Machines Sabotaged . | . . . . . Overloaded Fab Kills . | . . . . . Hacking | -11 -10 -10 -9 -6 --------- Run | Yrd Mat Sub Scr Fac Machines Accessed 18 | . 7 3 7 1 Terminals 6 | . 6 . . . Fabricators . | . . . . . Repair Stations 1 | . 1 . . . Recycling Units 1 | . . . . 1 Scanalyzers . | . . . . . Garrison Access . | . . . . . Total Hacks 63 | . 13 7 39 4 Successful 56 | . 6 7 39 4 Failed 7 | . 7 . . . Catastrophic . | . . . . . Database Lockouts . | . . . . . Manual 5 | . 4 . . 1 Terminals 11 | . 11 . . . Fabricators . | . . . . . Repair Stations 2 | . 2 . . . Recycling Units 4 | . . . . 4 Scanalyzers . | . . . . . Garrison Access . | . . . . . Terminal Hacks 50 | . 4 7 39 . Record 43 | . . 5 38 . Robot Analysis 1 | . 1 . . . Open Door 1 | . . 1 . . Locate Traps 1 | . 1 . . . Registered Components 1 | . 1 . . . Zone Layout 1 | . 1 . . . Proto ID Catalog 1 | . . . 1 . Release Object 1 | . . 1 . . Fabricator Hacks . | . . . . . Repair Station Hacks 2 | . 2 . . . Scan Component 1 | . 1 . . . Repair 1 | . 1 . . . Recycling Unit Hacks 4 | . . . . 4 Recycle Component 1 | . . . . 1 Process 2 | . . . . 2 Retrieve Matter 1 | . . . . 1 Scanalyzer . | . . . . . Garrison Access Hacks . | . . . . . Unauthorized Hacks . | . . . . . Terminals . | . . . . . Fabricators . | . . . . . Repair Stations . | . . . . . Recycling Units . | . . . . . Scanalyzers . | . . . . . Garrison Access . | . . . . . Data Cores Recovered . | . . . . . Used . | . . . . . Hacking Detections 6 | . 5 . . 1 Full Trace Events . | . . . . . Feedback Events . | . . . . . Feedback Blocked . | . . . . . Robot Schematics Acquired . | . . . . . Robots Built . | . . . . . Authchips . | . . . . . Time . | . . . . . Total Robot Build Rating . | . . . . . Part Schematics Acquired . | . . . . . Parts Built . | . . . . . Authchips . | . . . . . Time . | . . . . . Total Part Build Rating . | . . . . . Parts Repaired 1 | . 1 . . . Time 26 | . 26 . . . Parts Recycled 1 | . . . . 1 Recycled Matter 134 | . . . . 134 Retrieved Matter 134 | . . . . 134 Retrieved Components . | . . . . . Parts Scanalyzed . | . . . . . Part Schematics Acquired . | . . . . . Parts Damaged . | . . . . . Bothacking | -11 -10 -10 -9 -6 ------------ Run | Yrd Mat Sub Scr Fac Used RIF Installer . | . . . . . Robots Hacked . | . . . . . Non-combat . | . . . . . Combat . | . . . . . Robot Hacks Applied . | . . . . . Relay Couplers Released . | . . . . . Fabnet Peak Effective % . | . . . . . Robots Rewired . | . . . . . Allies Hacked . | . . . . . Hacks Repelled . | . . . . . Allies | -11 -10 -10 -9 -6 -------- Run | Yrd Mat Sub Scr Fac Total Allies . | . . . . . Largest Group . | . . . . . Highest-Rated Group . | . . . . . Highest-Rated Ally . | . . . . . Total Orders . | . . . . . Ally Attacks . | . . . . . Total Damage . | . . . . . Kills . | . . . . . Allies Corrupted . | . . . . . Allies Melted . | . . . . . Intel | -11 -10 -10 -9 -6 ------- Run | Yrd Mat Sub Scr Fac Active Infowar (turns) 4093 | 24 1228 516 2117 208 Structural 2325 | . . . 2117 208 Seismic 1768 | 24 1228 516 . . Robot Analysis Total 1 | . 1 . . . Derelict Logs Recovered 1 | . . 1 . . Drone Launches . | . . . . . Drone Recoveries . | . . . . . Exploration | -11 -10 -10 -9 -6 ------------- Run | Yrd Mat Sub Scr Fac Turns Passed 7207 | 167 1228 1386 4218 208 Spaces Moved 3427 | 68 624 810 1821 104 Core 2 | 2 . . . . Treads 3425 | 66 624 810 1821 104 Legs . | . . . . . Wheels . | . . . . . Hover . | . . . . . Flight . | . . . . . Fastest Speed 50 | 50 160 160 160 151 Average Speed 196 | 156 160 160 229 157 Slowest Speed 305 | 160 160 160 305 192 Overloaded Moves . | . . . . . Propulsion Burnouts . | . . . . . Robots Hopped . | . . . . . Potential Cave-ins . | . . . . . Cave-ins Triggered . | . . . . . Exploration Rate (%) 46 | 3 91 44 90 2 Regions Visited 4 Branch Regions 2 Pre-discovered Areas 1 | . . 1 . . Known Exits Taken . | . . . . . Unknown Exits Taken 4 | 1 1 1 1 . Scrap Searched 10 | . . . 10 . Spaces Dug 8 | . 8 . . . Terrain Destroyed 37 | . 8 28 1 . Melee . | . . . . . Projectile 1 | . . . 1 . AOE 36 | . 8 28 . . Terrain Rammed . | . . . . . Walls Destroyed . | . . . . . Machines Disabled . | . . . . . Actions | -11 -10 -10 -9 -6 --------- Run | Yrd Mat Sub Scr Fac Total 3723 | 95 770 853 1868 137 Wait 100 | 4 70 9 . 17 Move 3423 | 67 623 809 1820 104 Hop . | . . . . . Pick Up 26 | 1 9 1 15 . Fast Attach 10 | 7 1 . 2 . Attach 3 | . . . . 3 Detach . | . . . . . Swap 33 | 1 12 6 13 1 Drop 25 | . 9 2 14 . Fire 99 | 15 43 25 4 12 Melee . | . . . . . Ram . | . . . . . Kick . | . . . . . Crush 3 | . 3 . . . Escape Stasis . | . . . . . Rewire . | . . . . . Trap . | . . . . . Miscellaneous 1 | . . 1 . . Route ------- -11/Scrapyard -10/Materials (discovered 5 exits: [*Mat x3] / [*Min] / *Sub) -10/Subcaves -9/Scraptown (discovered 2 exits: *Fac x2) -6/Factory History --------- Turn | Location | Event 2 | -11/Scrapyard | Met Revision 17 18 | -11/Scrapyard | Discovered new exit (range 16) 168 | -11/Scrapyard | Entered Materials 169 | -10/Materials | Met a group of wandering Federalists 253 | -10/Materials | Discovered new exit (range 10) 302 | -10/Materials | Build established: Mutant 306 | -10/Materials | Discovered new exit (range 6) 592 | -10/Materials | Repaired Lgt. Treads 738 | -10/Materials | Discovered new exit (range 8) 1126 | -10/Materials | Discovered new exit (range 15) 1278 | -10/Materials | Discovered new exit (range 12) 1396 | -10/Materials | Entered Subcaves 1397 | -10/Subcaves | Continued accompanying wandering Federalists (6) 1401 | -10/Subcaves | Shifting Twisted Machinery released Scrap Shield 1645 | -10/Subcaves | A swath of the cavern ceiling suddenly collapsed 1782 | -10/Subcaves | Visited Clippyterm 1787 | -10/Subcaves | Learned location of Extension (-4) 2110 | -10/Subcaves | Learned Materials trap positions 2121 | -10/Subcaves | Released subatomizers from SUBCON Basin 2341 | -10/Subcaves | Shifting Twisted Machinery released Sub. Beam Cannon 2645 | -10/Subcaves | Shifting Twisted Machinery released Piercing Trap 2782 | -10/Subcaves | Entered Scraptown 3273 | -9/Scraptown | Discovered new exit (range 11) 3388 | -9/Scraptown | Visited Bundlers 3544 | -9/Scraptown | Visited Comm Corps 3667 | -9/Scraptown | Visited Red Mages 3783 | -9/Scraptown | Visited Cave Peace 3847 | -9/Scraptown | Visited Shadow of the Wyrm 3912 | -9/Scraptown | Visited UFD Registry 3912 | -9/Scraptown | Registered with UFD as "Fibercoil" 3943 | -9/Scraptown | Visited TADAMA 3987 | -9/Scraptown | Visited Fellowship of the Rings 4450 | -9/Scraptown | Visited Supply Room 4492 | -9/Scraptown | Visited Curators Association 4598 | -9/Scraptown | Visited Sword Containment 4633 | -9/Scraptown | Visited Modified Component R&D 4771 | -9/Scraptown | Visited DA-N13 Charitable Foundation 4788 | -9/Scraptown | Found DCF Scrap (29 items) 4917 | -9/Scraptown | Visited Science Guys 5094 | -9/Scraptown | Build established: Derelict-Mutant 5372 | -9/Scraptown | Visited Junk Repository 5438 | -9/Scraptown | Visited Chapter 10 5510 | -9/Scraptown | Visited Scrapoid Research Area 5612 | -9/Scraptown | Visited LU-1G1's Boring Crew 5809 | -9/Scraptown | Received an X-ray algorithm 6822 | -9/Scraptown | Met Optimus 6822 | -9/Scraptown | Accepted into 0bPrime 6930 | -9/Scraptown | Civil war broke out across Scraptown 6986 | -9/Scraptown | Discovered new exit (range 7) 6987 | -9/Scraptown | Core integrity fell below 50% 7000 | -9/Scraptown | Entered Factory 7000 | -6/Factory | Evolved 8 slots: Propulsion x2, Utility x5, Weapon x1 7006 | -6/Factory | Lost 10 allies 7110 | -6/Factory | Ran an X-ray algorithm 7208 | -6/Factory | Self-destructed Last Messages --------------- 07113_ K-01 Serf cleans the Power Conduit. 07120_ K-01 Serf collects debris. 07142_ K-01 Serf cleans the Power Conduit. 07158_ Connecting with Recycling Unit... >>Recycle(Ovr. Medium Treads) Accepting Ovr. Medium Treads... >>Recycling(Process) Analyzing inventory... Recycling at 100% efficiency: Focal Shield (1) Imp. Medium Treads (8) Hvy. Flak Cannon (33) Ovr. Medium Treads (92) 07159_ K-01 Serf cleans the Power Conduit. 07174_ Connecting with Recycling Unit... >>Recycling(Process) Analyzing inventory... >>Retrieve(Matter) Matter ejected: 134 07197_ Subsystem restored. Map ----- +----------------------------------------------------+ | ????????????????????## ##????????????????? | | ????????????????????## ##????????????????? | | ????????????????????## ##????????????????? | | ????????????????????## ##????????????????? | | ????????????????????## ##????????????????? | | ????????????????????## """ """ ##????????????????? | | ????????????????????## """ """ ##????????????????? | | ????????????????????## """ """ ##?????????? ???? | | ????????????????????######+######??????????###???? | | ????????????????????### ###?????????? + ???? | | ?????????????????????## ##????????? # ???? | | ?????????????????????## ######### # ???? | | ?????????????????????## ######### + ???? | | ?????????????????????## # ???? | | ?????????????????????#### # ???? | | ?????????????????????#### ??????? | | ????????????????????##### /] ==* """ ""????????? | | ??????????############### /] ==* """ ""????????? | | ??????????############ ## = =** """ """? # ???? | | ??????????## # *# ???? | | ??????????##! # ##???? | | ??????????## """"""""" # ################???? | | ??????????## [# # ???? | | ??????????##!!! = # # ?????????????????? | | ??????????##!!! + # ?????????????????? | | ??????????##!! #@ # ?????????????????? | | ??????????## # # ?????????????????? | | ??????????## % # # ?????????????????? | | ??????????## "Y" # # ?????????????????? | | ??????????## """ # ##?????????????????? | | ??????????## # ?????????????????? | | ??????????############### ????????????????? | | ?????????? + ???????????????? | | ??????????????????????? ??????????????? | | ??????????????????????? ?????????????? | | ?????????????????????? """ ????????????? | | ????????????????????? """ =!! ????????????? | | ????????????????????????"" =!! ??????????????? | | ????????????????????????? =! ????????????????? | | ?????????????????????????? ??????????????????? | | ?????????????????????????? ?????????????????????? | | ?????????????????????????????????????????????????? | | ?????????????????????????????????????????????????? | | ?????????????????????????????????????????????????? | | ?????????????????????????????????????????????????? | | ?????????????????????????????????????????????????? | | ?????????????????????????????????????????????????? | | ?????????????????????????????????????????????????? | | ?????????????????????????????????????????????????? | | ?????????????????????????????????????????????????? | +----------------------------------------------------+ Best States ------------- Heat Dissipation 37 Energy Generation 12 Energy Capacity 265 Matter Stores 300 Matter Capacity 300 Sight Range 16 Terrain Scan Density 10 Armor Coverage 150 Evasion (%) 40 Recoil Reduction 4 Item Schematics ----------------- None Robot Schematics ------------------ None Fabricated ------------ Nothing Repaired ---------- Lgt. Treads | 91% | -10/Materials Alien Tech Used ----------------- None Achievements -------------- None Challenges ------------ None Game ------ Seed PointyLongswordCanceller Manual? 0 Play Time 00:30:24 Cumulative 110.3 hours Start 2025.09.29 @ 01:32:10 End 2025.09.29 @ 02:01:51 Sessions 1 Manual Loads 0 Difficulty Rogue Special Mode None Game No. 215 Rogue 213 Adventurer 0 Explorer 2 Win Type - Total 1 Types 1/0/0/0/0/0/0/0/0/0 Lore% 39 Gallery% 49 Achievement% 43 Wizard Run 0 Options --------- Layout 2 ASCII 0 Keyboard 1 Movement Arrows Keybinds 0 Fullscreen 1 Font 28/SmallcapsGlow Map View 50x49 Zoom Use 3% Tactical HUD 1 Map Filters NONE Filters NONE Steam 1 RUN: 3fa353a0-45b1-4691-af66-4216fc1304c7